bitfinex/quotes_ETHUSD_20240618
["timestamp","ask_amount","ask_price","bid_price","bid_amount"]
[1718689220063,2.09986896,3461.3,3460.8,2.3311]
[1718689221856,0.852,3461.2,3460.8,2.3311]
[1718689222058,2.09986896,3461.1,3460.8,2.3311]
[1718689222675,2.09986896,3461.1,3460.3,2.358]
[1718689224394,0.852,3461.0,3460.3,2.358]
[1718689224695,2.09995284,3460.9,3460.3,2.358]
[1718689224896,2.09995284,3460.8,3460.3,2.358]
[1718689225082,0.852,3461.2,3460.3,2.358]
[1718689225279,2.10001347,3461.1,3460.3,2.358]
[1718689225480,0.852,3460.9,3460.3,2.358]
[1718689225683,2.39521482,3460.8,3460.3,2.358]
[1718689225991,2.10001347,3460.7,3460.3,2.358]
[1718689227695,2.10001347,3460.7,3460.4,0.06582961]
[1718689231486,2.10001347,3460.6,3460.4,0.09569284]
[1718689231687,2.10001347,3460.5,3460.4,0.09569284]
[1718689232086,2.10001347,3460.8,3460.4,0.09569284]
[1718689232397,2.95201347,3460.7,3460.4,0.09569284]
[1718689232711,2.10001347,3460.6,3460.4,0.09569284]
[1718689232993,2.10001347,3460.6,3460.5,0.0959051]
[1718689233420,2.10001347,3460.6,3460.1,2.3798]
[1718689233616,2.10001347,3460.6,3460.5,0.0959051]
[1718689233781,2.42473495,3460.6,3460.1,2.3798]
[1718689233982,2.10001347,3460.5,3460.1,2.3798]
[1718689234196,0.852,3460.7,3460.1,2.3798]
[1718689234366,2.10028104,3460.6,3460.1,2.3798]
[1718689235124,0.50007441,3461.5,3460.6,2.3798]
[1718689235430,7.43,3462.3,3461.2,0.852]
[1718689235578,0.743,3462.2,3461.4,0.852]
[1718689235775,0.49989011,3462.7,3461.5,0.05777186]
[1718689236017,2.93929011,3463.0,3461.4,0.852]
[1718689236226,0.852,3462.4,3461.4,0.852]
[1718689237421,0.30156763,3462.9,3461.3,2.3798]
[1718689237719,0.47869676,3462.8,3461.3,2.906702]
[1718689238442,3.30156763,3462.9,3461.5,2.2972]
[1718689238443,0.30156763,3462.9,3461.5,2.2972]
[1718689238646,0.49989011,3463.1,3461.6,0.05776486]
[1718689238920,4.4336,3463.4,3461.7,2.2972]
[1718689239121,4.4336,3463.4,3461.8,0.0577649]
[1718689240423,3.0,3463.3,3461.8,0.0577649]
[1718689240720,0.78665522,3463.2,3461.8,0.0577649]
[1718689241698,0.78665522,3463.2,3461.9,0.09529472]
[1718689242082,0.78665522,3463.2,3461.8,0.0577649]
[1718689242504,0.78665522,3463.2,3461.9,0.09529472]
[1718689242904,0.78665522,3463.2,3461.8,0.0577649]
[1718689243089,0.86532074,3463.1,3461.8,0.29326139]
[1718689243295,0.86532074,3463.1,3461.9,0.09529472]
[1718689248488,0.86532074,3463.1,3462.0,2.2599]
[1718689248884,0.86532074,3463.1,3462.1,0.15244539]
[1718689249127,3.30153805,3463.3,3462.1,0.15244539]
[1718689249339,3.0,3463.3,3462.1,0.05776471]
[1718689249821,3.0,3463.3,3462.0,2.2599]
[1718689250205,3.0,3463.3,3462.1,0.09452517]
[1718689250629,3.0,3463.3,3462.1,0.15228598]
[1718689250833,0.74336,3463.2,3462.1,0.39350458]
[1718689254119,0.74336,3463.2,3462.1,0.33574377]
[1718689254320,0.74336,3463.2,3462.1,0.09452517]
[1718689254622,0.74336,3463.2,3462.0,2.2599]
[1718689255829,0.74336,3463.2,3461.3,0.526902]
[1718689255830,0.3016998,3463.3,3462.2,2.3404]
[1718689256047,5.2569,3463.7,3462.4,2.3404]
[1718689256048,3.0,3463.7,3462.4,2.3404]
[1718689256224,7.43,3463.8,3462.3,0.09452991]
[1718689256422,1.0040358,3463.7,3462.5,0.09450284]
[1718689256626,2.61035802,3463.9,3462.4,2.39815615]
[1718689256627,2.61035802,3463.9,3462.4,2.3404]
[1718689256815,2.61035802,3463.9,3462.6,0.09449108]
[1718689257134,3.0,3463.8,3462.0,2.3404]
[1718689257339,3.0,3463.8,3462.2,2.3404]
[1718689257510,3.0,3463.8,3462.4,2.3395]
[1718689257712,0.61100542,3463.7,3462.5,0.15214921]
[1718689257907,0.61100542,3463.7,3462.5,0.0943933]
[1718689260234,0.61100542,3463.7,3462.5,0.15214925]
[1718689260442,2.302,3463.6,3462.5,0.0943933]
[1718689260629,1.50821695,3463.5,3462.5,0.0943933]
[1718689260938,1.50821695,3463.5,3461.5,2.2702]
[1718689260939,2.046,3463.3,3461.5,2.2702]
[1718689261161,2.046,3463.3,3461.6,0.09448153]
[1718689262228,2.046,3463.3,3461.7,0.55]
[1718689262664,2.046,3463.3,3461.8,0.09445799]
[1718689262864,0.74371241,3463.2,3461.8,0.09445799]
[1718689263028,3.74371241,3463.2,3461.8,0.09445799]
[1718689263667,3.74371241,3463.2,3462.0,2.4959]
[1718689263958,3.74371241,3463.2,3462.1,0.15235766]
[1718689264132,0.74371241,3463.2,3462.1,0.15235766]
[1718689264333,2.4832,3463.0,3462.1,0.09459585]
[1718689264555,2.4832,3463.0,3462.0,2.4959]
[1718689264940,2.4832,3463.0,3462.1,0.0914233]
[1718689265363,3.0,3463.2,3462.1,0.14918823]
[1718689265569,3.0,3463.2,3462.1,0.05776493]
[1718689265857,1.10295974,3463.1,3462.2,0.09141154]
[1718689266267,1.10295974,3463.1,3462.1,0.05776244]
[1718689266641,1.10295974,3463.1,3462.2,0.09141154]
[1718689267043,1.10295974,3463.1,3462.0,2.4959]
[1718689267359,1.10295974,3463.1,3462.1,0.05776267]
[1718689267561,1.10295974,3463.1,3462.2,0.09141154]
[1718689267731,1.10295974,3463.1,3462.0,2.4959]
[1718689267926,1.10295974,3463.1,3462.1,0.14918612]
[1718689268135,3.0,3463.6,3462.1,2.62128612]
[1718689271564,0.852,3463.3,3462.3,0.852]
[1718689271766,0.852,3463.3,3462.4,0.14912204]
[1718689271959,0.852,3463.3,3462.5,2.3941]
[1718689272288,0.852,3463.3,3462.6,0.09134333]
[1718689273857,3.0,3463.6,3462.6,0.14909841]
[1718689274059,0.852,3463.4,3462.6,0.14909841]
[1718689274591,0.852,3463.4,3462.6,0.05775508]
[1718689275494,0.852,3463.4,3462.7,0.09114826]
[1718689277198,0.852,3463.5,3462.9,2.4909]
[1718689278776,3.0,3463.8,3462.9,2.4909]
[1718689278995,0.852,3463.6,3462.9,2.4909]
[1718689281310,0.852,3463.4,3462.9,2.4909]
[1718689281628,0.852,3463.4,3463.0,0.09111298]
[1718689284576,0.852,3463.4,3462.9,2.4909]
[1718689284782,0.852,3463.6,3462.9,2.4909]
[1718689285077,3.80114624,3464.0,3462.9,2.4909]
[1718689285283,0.852,3463.6,3462.9,2.4909]
[1718689286384,3.0,3463.8,3462.9,2.4909]
[1718689286585,0.852,3463.7,3462.9,2.4909]
[1718689289783,0.80113739,3464.0,3463.0,0.05775003]
[1718689289979,2.50365348,3464.3,3463.1,3.1817]
[1718689290182,1.72507792,3464.3,3463.3,3.1817]
[1718689290395,0.852,3464.2,3463.4,0.09073817]
[1718689290617,0.852,3464.2,3463.3,3.1817]
[1718689290618,5.4847,3464.5,3463.3,3.1817]
[1718689290794,0.852,3464.2,3463.3,3.1817]
[1718689292178,3.0,3464.4,3463.4,2.4374]
[1718689292386,0.852,3464.2,3463.4,2.4374]
[1718689292720,0.852,3464.2,3463.5,0.09072642]
[1718689295423,2.09831547,3464.1,3463.5,0.09072642]
[1718689295723,5.09831547,3464.1,3463.5,0.09072642]
[1718689295929,2.09831547,3464.0,3463.5,0.09072642]
[1718689296107,5.09831547,3464.0,3463.5,0.09072642]
[1718689296302,2.09831547,3463.9,3463.4,2.4374]
[1718689296508,2.09831547,3463.8,3463.6,0.09071466]
[1718689296711,2.09831547,3463.7,3463.5,0.09072642]
[1718689296908,0.852,3464.0,3463.4,2.4374]
[1718689297109,2.09830865,3463.9,3463.6,0.09071466]
[1718689297311,2.09830865,3463.9,3463.4,2.4374]
[1718689300033,2.09830865,3463.8,3463.4,2.4374]
[1718689300234,3.0,3464.1,3463.4,2.4374]
[1718689300400,2.09828267,3464.0,3463.4,2.4374]
[1718689300603,2.09828267,3463.9,3463.4,2.4374]
[1718689300801,2.09828267,3463.8,3463.4,2.4374]
[1718689301113,2.09828267,3463.7,3463.4,2.4374]
[1718689301316,0.852,3464.1,3463.4,2.4374]
[1718689301557,2.09830155,3464.0,3463.4,2.4374]
[1718689302129,2.09830155,3463.9,3463.4,2.4374]
[1718689302450,2.09830155,3463.8,3463.4,2.76634]
[1718689302659,3.0,3464.2,3463.5,0.09036002]
[1718689302985,2.09823378,3464.1,3463.5,0.09036002]
[1718689303116,2.09823378,3464.0,3463.5,0.09036002]
[1718689303318,2.09823378,3463.9,3463.5,0.09036002]
[1718689303625,3.0,3464.2,3463.6,0.09031304]
[1718689303814,2.0982195,3464.1,3463.4,2.4374]
[1718689304015,2.0982195,3464.0,3463.5,0.09032479]
[1718689304213,2.0982195,3463.9,3463.4,2.4374]
[1718689304413,3.0,3464.2,3463.5,0.09032127]
[1718689304649,2.09822045,3464.1,3463.5,0.09032127]
[1718689304853,0.852,3464.3,3463.5,0.09032127]
[1718689304854,2.09822045,3464.0,3463.5,0.09032127]
[1718689305031,2.09822045,3463.9,3463.4,2.4374]
[1718689305360,3.0,3464.2,3463.6,0.09030952]
[1718689305514,0.852,3464.4,3463.5,0.14806242]
[1718689305515,2.09820594,3464.1,3463.5,0.14806242]
[1718689305715,2.09820594,3464.0,3463.7,0.09027663]
[1718689305958,2.09820594,3463.9,3463.5,0.05774115]
[1718689306199,3.852,3464.4,3463.8,0.09026487]
[1718689306372,3.852,3464.4,3463.5,0.05774115]
[1718689306373,2.48336493,3464.3,3463.5,0.05774115]
[1718689306570,2.09816493,3464.2,3464.0,0.852]
[1718689306900,0.28862511,3465.4,3464.0,0.852]
[1718689306901,0.49960922,3465.0,3464.1,2.5742609]
[1718689307129,0.852,3465.3,3464.4,0.852]
[1718689307394,0.852,3465.3,3464.1,2.51652961]
[1718689307395,1.35143675,3465.6,3464.5,2.48401839]
[1718689307561,0.852,3465.4,3464.5,3.18659362]
[1718689308789,0.852,3465.4,3464.5,4.03859362]
[1718689310005,0.852,3465.4,3464.5,3.12887523]
[1718689311213,0.852,3465.2,3464.5,3.12887523]
[1718689311360,0.852,3465.2,3464.5,2.51645442]
[1718689314895,0.852,3464.8,3464.5,0.09015442]
[1718689315205,0.852,3464.8,3464.1,2.3557]
[1718689315401,3.0,3465.7,3464.1,2.3557]
[1718689315402,2.2518,3465.6,3464.1,2.3557]
[1718689315718,0.852,3465.0,3464.2,0.14687599]
[1718689315877,3.0,3465.5,3464.2,0.08915048]
[1718689316073,0.852,3465.1,3464.3,2.2782]
[1718689316283,0.852,3465.1,3464.3,2.83964378]
[1718689317818,0.852,3465.1,3464.4,0.05772055]
[1718689317982,0.852,3465.3,3464.4,0.05772055]
[1718689318182,0.852,3465.3,3464.5,0.08911523]
[1718689318408,0.852,3465.3,3464.6,0.05772053]
[1718689318802,0.852,3465.3,3464.7,0.08909173]
[1718689319915,0.852,3464.9,3464.7,0.08909173]
[1718689320117,0.852,3464.9,3463.5,2.3404]
[1718689320320,0.852,3463.9,3463.5,2.3404]
[1718689320492,7.43,3464.7,3463.0,3.1924]
[1718689320692,0.852,3464.2,3463.0,2.3404]
[1718689320907,0.852,3464.2,3463.2,0.852]
[1718689321229,0.852,3464.0,3463.2,0.852]
[1718689321919,0.852,3464.0,3463.1,0.522814]
[1718689323529,3.0,3464.2,3463.1,0.522814]
[1718689323829,2.4059,3464.3,3463.0,2.3404]
[1718689324232,2.4059,3464.3,3462.7,2.88789]
[1718689324438,2.2619,3464.3,3462.8,0.55]
[1718689325146,2.044,3464.2,3462.7,2.3783]
[1718689325439,0.73059,3464.1,3462.8,0.23783]
[1718689325605,0.70259,3464.1,3462.8,0.23783]
[1718689325935,3.70259,3464.1,3462.8,0.23783]
[1718689326244,3.70259,3464.1,3462.9,0.05774855]
[1718689327510,3.0,3464.1,3462.9,2.94549855]
[1718689327709,3.0,3464.2,3462.9,2.94549855]
[1718689327942,3.0,3464.3,3462.9,2.94549855]
[1718689328248,3.0,3464.3,3463.0,0.84495086]
[1718689328451,3.0,3464.3,3463.1,2.39884213]
[1718689330752,3.0,3464.3,3463.1,2.3411]
[1718689332364,2.4189,3464.2,3463.0,0.84495086]
[1718689332570,2.4189,3464.2,3462.8,0.23783]
[1718689333438,3.0,3464.0,3462.8,0.23783]
[1718689333643,3.0,3463.9,3462.8,0.23783]
[1718689334567,3.0,3463.9,3462.7,2.4752]
[1718689334568,5.044,3463.9,3462.7,2.4752]
[1718689334772,2.4708,3463.8,3462.1,2.33]
[1718689334970,2.044,3463.5,3462.1,2.33]
[1718689335273,2.49548,3463.5,3462.2,0.33925905]
[1718689336249,2.4708,3463.4,3462.2,0.33925905]
[1718689336582,5.4708,3463.4,3462.2,0.33925905]
[1718689336787,5.4708,3463.4,3462.2,0.08130005]
[1718689337082,5.4708,3463.4,3461.8,2.33]
[1718689337447,2.044,3463.1,3461.8,2.33]
[1718689337688,5.044,3463.1,3461.8,2.33]
[1718689337850,0.85438378,3463.0,3461.9,0.08157494]
[1718689338047,3.85438378,3463.0,3461.9,0.08157494]
[1718689338285,3.85438378,3463.0,3461.8,2.563]
[1718689338490,3.85438378,3463.0,3462.0,0.08162661]
[1718689338789,3.85438378,3463.0,3461.8,2.563]
[1718689339167,3.85438378,3463.0,3461.9,0.08163838]
[1718689339491,0.88983838,3462.9,3461.9,0.08163838]
[1718689339666,0.88983838,3462.9,3461.8,2.563]
[1718689339860,0.88983838,3462.9,3461.9,0.08171592]
[1718689340088,0.88983838,3462.9,3461.8,2.563]
[1718689340292,0.88983838,3462.9,3462.0,0.08170415]
[1718689340588,2.044,3462.7,3461.3,2.3711]
[1718689340968,5.044,3462.7,3461.4,0.07912582]
[1718689343088,2.2741,3462.2,3461.4,0.07912582]
[1718689343260,0.43181,3462.1,3460.9,2.3711]
[1718689343460,2.2741,3462.2,3461.0,0.07931746]
[1718689343682,5.2741,3462.2,3461.0,0.07931746]
[1718689344462,2.044,3461.8,3461.0,0.07931746]
[1718689344801,4.4715,3461.4,3460.2,2.4891]
[1718689344996,2.044,3461.0,3459.8,2.4057]
[1718689345154,2.044,3461.0,3460.3,0.07498893]
[1718689345363,2.044,3460.6,3459.2,2.4057]
[1718689345763,2.044,3460.6,3459.3,0.07243928]
[1718689346016,4.3009,3460.6,3459.4,0.24781393]
[1718689347194,4.3009,3460.6,3459.5,0.07241571]
[1718689350227,2.044,3461.0,3459.5,0.13022244]
[1718689350424,5.044,3461.0,3459.5,0.13022244]
[1718689350608,1.03759,3460.9,3459.6,0.05780204]
[1718689350811,4.03759,3460.9,3459.6,0.05780204]
[1718689351010,4.03759,3460.9,3459.7,0.07239215]
[1718689351409,4.03759,3460.9,3459.6,0.05780204]
[1718689351832,4.03759,3460.9,3459.7,0.07239215]
[1718689352130,1.141349,3460.8,3459.7,0.07239215]
[1718689353539,1.141349,3460.8,3459.8,0.05780189]
[1718689354025,1.141349,3460.8,3459.9,0.07236858]
[1718689354537,1.141349,3460.8,3459.5,0.05780098]
[1718689354937,1.141349,3460.8,3459.6,0.07240393]
[1718689355146,1.141349,3460.8,3459.7,0.05780097]
[1718689355504,1.141349,3460.8,3459.8,0.07238036]
[1718689355723,1.141349,3460.8,3459.8,0.13018133]
[1718689356850,1.141349,3460.8,3459.8,0.07238036]
[1718689357229,1.141349,3460.8,3459.5,0.05780096]
[1718689357434,3.0,3460.9,3459.9,0.07234192]
[1718689357749,5.044,3461.0,3459.7,0.05780095]
[1718689358042,5.044,3461.0,3459.4,0.24781393]
[1718689358232,5.71409618,3461.0,3459.8,0.0723537]
[1718689358402,5.71409618,3461.0,3459.5,0.07287838]
[1718689358607,1.14369675,3460.9,3459.5,0.27263923]
[1718689358902,4.14369675,3460.9,3459.6,0.0728666]
[1718689359353,2.044,3460.2,3459.6,0.0728666]
[1718689359859,2.044,3460.2,3458.6,7.43]
[1718689360037,2.044,3460.2,3458.5,2.89142]
[1718689360227,2.044,3460.2,3459.3,0.07290195]
[1718689360544,2.044,3460.2,3458.5,2.89142]
[1718689360745,2.044,3460.2,3458.6,3.0]
[1718689361048,2.044,3460.2,3459.3,0.07290195]
[1718689361447,2.044,3460.2,3458.6,3.0]
[1718689361631,2.044,3460.2,3459.2,2.64627]
[1718689361932,2.044,3460.2,3459.3,0.07290195]
[1718689362361,2.3204,3460.4,3459.3,0.07290195]
[1718689362516,5.3204,3460.4,3459.3,0.07290195]
[1718689362719,5.3204,3460.4,3459.2,2.64627]
[1718689362916,1.03644,3460.3,3459.2,2.64627]
[1718689363117,1.03644,3460.3,3459.3,0.07290195]
[1718689363418,1.03644,3460.3,3459.2,2.64627]
[1718689363730,1.03644,3460.3,3459.3,0.07290195]
[1718689364265,1.03644,3460.3,3459.2,2.64627]
[1718689364616,3.0,3460.4,3459.3,0.39533984]
[1718689364836,3.0,3460.5,3459.3,0.39533984]
[1718689365038,5.044,3460.8,3459.3,0.33752895]
[1718689365324,5.044,3460.8,3459.3,0.264627]
[1718689366530,5.044,3460.8,3459.2,2.4057]
[1718689366531,2.044,3460.4,3459.2,2.4057]
[1718689366988,2.044,3460.4,3459.3,0.07356384]
[1718689367336,2.044,3460.4,3459.2,2.4057]
[1718689367792,2.044,3460.4,3459.3,0.07356384]
[1718689368136,2.044,3460.4,3459.2,2.4057]
[1718689368336,0.5044,3460.3,3459.2,2.4057]
[1718689368536,0.5044,3460.3,3459.3,0.07356384]
[1718689368736,2.9161,3460.3,3459.3,0.07356384]
[1718689368987,2.9161,3460.3,3459.2,2.4057]
[1718689369196,0.5044,3460.3,3459.2,2.4057]
[1718689369488,0.5044,3460.3,3459.3,0.07356384]
[1718689370153,0.5044,3460.3,3459.2,2.64627]
[1718689370349,0.5044,3460.3,3459.2,2.4057]
[1718689370568,0.5044,3460.3,3459.3,0.07356384]
[1718689371073,0.5044,3460.3,3459.4,0.07355205]
[1718689371241,0.5044,3460.3,3459.2,2.4057]
[1718689371441,0.5044,3460.3,3459.3,0.07356384]
[1718689371637,0.28501985,3460.2,3459.3,0.07356384]
[1718689372847,0.28501985,3460.2,3459.2,2.4057]
[1718689376143,0.28501985,3460.2,3459.3,0.07363779]
[1718689376549,0.28501985,3460.2,3459.2,2.4057]
[1718689379148,0.28501985,3460.2,3459.3,0.07373642]
[1718689379376,0.30179852,3460.4,3459.4,0.24794364]
[1718689379576,0.30179852,3460.4,3459.3,0.07373642]
[1718689379851,0.30179852,3460.4,3459.3,2.5065106]
[1718689380073,0.30179852,3460.4,3459.5,2.4487]
[1718689380270,3.50020795,3460.8,3459.7,2.4487]
[1718689380473,3.0,3460.8,3459.8,0.07364932]
[1718689380655,4.3400108,3460.8,3459.8,0.07364932]
[1718689380858,4.84021875,3460.8,3459.8,0.07364932]
[1718689381471,4.84021875,3460.8,3459.8,0.13144989]
[1718689381693,3.50020795,3460.8,3459.8,0.13144989]
[1718689381900,3.0,3460.8,3459.8,0.05780057]
[1718689383000,3.0,3461.1,3459.9,2.4078]
[1718689383207,3.94735795,3461.3,3460.0,0.05779723]
[1718689383502,3.2012296,3461.2,3460.0,0.30435695]
[1718689383682,5.10023406,3461.1,3460.0,0.30435695]
[1718689383876,1.10099554,3461.2,3460.0,0.30435695]
[1718689384078,2.10028894,3461.1,3460.0,0.30435695]
[1718689384287,5.10028894,3461.1,3460.0,0.30435695]
[1718689384495,2.10028894,3461.0,3460.1,0.27121569]
[1718689384705,2.10028894,3461.0,3459.9,2.4078]
[1718689384706,7.14428894,3461.0,3459.9,2.4078]
[1718689384879,2.10033724,3460.9,3459.9,2.4078]
[1718689385088,5.10033724,3460.9,3459.9,2.4078]
[1718689385284,2.10033724,3460.8,3459.9,2.4078]
[1718689385479,5.10033724,3460.8,3459.9,2.4078]
[1718689385684,2.10033724,3460.7,3459.9,2.4078]
[1718689386205,2.10033724,3460.7,3459.9,2.64858]
[1718689386381,3.0,3460.9,3460.0,0.05780058]
[1718689386586,2.10024525,3460.8,3460.0,0.13116567]
[1718689386787,3.0,3461.4,3460.0,0.13116567]
[1718689387102,2.10024579,3461.3,3460.0,0.05780058]
[1718689387301,1.06444537,3461.2,3460.0,0.05780058]
[1718689387506,4.14424579,3461.1,3459.9,2.64858]
[1718689387705,2.10024579,3461.0,3459.9,2.4078]
[1718689387886,5.10024579,3461.0,3459.9,2.4078]
[1718689388081,2.10024579,3460.9,3459.9,2.4078]
[1718689388287,5.10024579,3460.9,3459.9,2.4078]
[1718689388600,2.10024579,3460.8,3459.9,2.4078]
[1718689388810,0.84171559,3460.7,3459.9,2.4078]
[1718689388971,2.10024579,3460.6,3459.9,2.4078]
[1718689389176,2.10024579,3460.6,3459.2,2.3559]
[1718689389376,8.14524579,3460.6,3459.2,2.3559]
[1718689389731,2.10024579,3460.5,3459.3,0.07106001]
[1718689389882,1.15311693,3460.4,3459.3,0.07106001]
[1718689390083,2.10024579,3460.3,3459.2,2.3559]
[1718689390313,2.10024579,3460.3,3459.3,0.07106001]
[1718689390518,2.10024579,3460.3,3459.2,2.3559]
[1718689390680,2.10024579,3460.3,3459.3,0.07106001]
[1718689390996,0.37535707,3460.2,3459.2,2.3559]
[1718689391196,2.10024579,3460.1,3459.2,2.3559]
[1718689391512,2.10024579,3460.1,3459.3,0.07106001]
[1718689392105,2.10024579,3460.1,3459.2,2.3559]
[1718689392309,2.10024579,3460.1,3459.3,0.07106001]
[1718689392481,2.10024579,3460.1,3459.2,2.3559]
[1718689392677,2.10024579,3460.1,3459.3,0.07106001]
[1718689392888,2.10024579,3460.1,3459.2,2.59149]
[1718689393089,2.10024579,3460.1,3459.3,0.07106001]
[1718689393309,2.10024579,3460.1,3459.2,2.59149]
[1718689393510,2.10024579,3460.1,3459.3,0.07106001]
[1718689393726,2.10024579,3460.1,3459.2,2.59149]
[1718689393931,2.10024579,3460.1,3459.3,0.07106001]
[1718689394438,2.46311777,3460.1,3459.2,2.3559]
[1718689394643,2.10024579,3460.0,3459.2,2.3559]
[1718689394831,2.10024579,3460.0,3459.3,0.07123614]
[1718689395136,2.10024579,3460.0,3459.2,2.3559]
[1718689395627,2.10024579,3460.0,3459.3,0.07123614]
[1718689395784,0.24631178,3459.9,3459.3,0.07123614]
[1718689395990,2.10024579,3459.8,3459.2,2.3559]
[1718689396532,2.10024579,3459.8,3459.3,0.07141931]
[1718689396903,2.10024579,3459.7,3459.2,2.3559]
[1718689397124,2.10024579,3459.6,3459.3,0.07141931]
[1718689397414,0.36287198,3460.1,3459.2,2.3559]
[1718689397617,2.10080602,3460.0,3459.2,2.3559]
[1718689398612,2.10080602,3460.0,3459.2,2.59149]
[1718689398820,2.10080602,3459.9,3459.2,2.59149]
[1718689399016,0.50021414,3460.5,3459.2,2.59149]
[1718689399017,2.10080602,3459.8,3459.3,0.12923186]
[1718689399226,3.0,3460.4,3459.4,2.3066]
[1718689399404,2.10056259,3460.3,3459.4,2.3066]
[1718689399604,2.10056259,3460.3,3459.5,0.26136093]
[1718689399814,2.10056259,3460.2,3459.5,0.31916792]
[1718689400125,2.10056259,3460.1,3459.6,0.07142623]
[1718689400328,2.10056259,3460.0,3459.6,0.07142623]
[1718689400626,2.10056758,3459.9,3459.6,0.07142623]
[1718689400930,3.0,3460.5,3459.6,0.07142623]
[1718689401128,3.39803522,3460.4,3459.4,2.3066]
[1718689401436,2.10061381,3460.3,3459.5,0.05780567]
[1718689401628,2.10061381,3460.2,3459.5,0.05780567]
[1718689401834,2.1005801,3460.1,3459.5,0.05780567]
[1718689401998,3.0,3460.5,3459.5,0.05780567]
[1718689401999,2.1005801,3460.0,3459.6,0.07133816]
[1718689402204,2.1005801,3459.9,3459.6,0.07133816]
[1718689402518,3.0,3460.5,3459.6,0.07133816]
[1718689402712,2.10059672,3460.4,3459.4,2.3066]
[1718689403523,2.10059672,3460.4,3459.5,0.05780567]
[1718689403720,2.10059672,3460.4,3459.5,0.29424624]
[1718689404922,2.10059672,3460.4,3459.6,0.07132759]
[1718689405091,2.10059672,3460.4,3459.5,0.29424624]
[1718689405291,2.10059672,3460.4,3459.6,0.07132759]
[1718689405520,2.10059672,3460.4,3459.7,2.48120557]
[1718689405710,2.10059672,3460.3,3459.9,2.4234]
[1718689405910,7.43,3460.7,3460.0,0.07118182]
[1718689406215,2.10026431,3460.6,3460.0,0.12897874]
[1718689406419,2.10026431,3460.5,3460.0,0.07118182]
[1718689406620,2.10026431,3460.4,3460.0,0.07118182]
[1718689406828,2.10026431,3460.3,3460.0,0.07118182]
[1718689407129,2.10026431,3460.2,3460.0,0.34781646]
[1718689407324,3.0,3460.8,3460.0,0.34781646]
[1718689407526,2.10035913,3460.7,3460.0,0.27663464]
[1718689407721,2.10035913,3460.6,3460.0,0.33443161]
[1718689408023,2.10035913,3460.5,3460.1,0.07104677]
[1718689408198,2.10035913,3460.4,3460.1,0.07104677]
[1718689408399,2.10035913,3460.3,3460.1,0.07104677]
[1718689408598,3.0,3461.1,3460.1,0.07104677]
[1718689408798,2.10033482,3461.0,3460.1,0.07104677]
[1718689408996,2.10033482,3461.0,3459.9,2.4234]
[1718689409208,2.10033482,3461.0,3460.0,0.05779697]
[1718689409733,2.10033482,3461.0,3459.9,2.4234]
[1718689409932,2.10033482,3460.9,3459.9,2.4234]
[1718689410102,7.32936778,3461.1,3459.9,2.4234]
[1718689410103,2.10033482,3460.8,3459.9,2.4234]
[1718689410300,2.10033482,3460.7,3459.9,2.4234]
[1718689410502,2.10033482,3460.6,3459.9,2.4234]
[1718689410732,3.0,3460.9,3459.9,2.4234]
[1718689410733,2.10050717,3460.5,3459.9,2.4234]
[1718689411034,2.10050717,3460.4,3459.9,2.4234]
[1718689411228,2.10050717,3460.3,3459.9,2.4234]
[1718689411451,2.10050717,3460.2,3459.9,2.4234]
[1718689411639,2.10050717,3460.1,3459.9,2.66574]
[1718689411808,3.0,3460.9,3459.9,2.66574]
[1718689412001,2.10032322,3460.8,3460.0,0.12894705]
[1718689412210,2.10032322,3460.7,3460.0,0.05779693]
[1718689412517,2.10032322,3460.6,3460.0,0.05779693]
[1718689412711,2.10032322,3460.5,3460.1,0.3434709]
[1718689413023,2.10032322,3460.4,3460.1,0.07111721]
[1718689413334,5.044,3461.1,3459.9,2.4234]
[1718689413335,2.10032322,3460.3,3459.9,2.4234]
[1718689413512,2.10047764,3460.2,3459.9,2.4234]
[1718689413718,2.10047764,3460.1,3459.9,2.4234]
[1718689413951,5.044,3461.1,3459.9,2.4234]
[1718689414110,4.54798368,3461.0,3459.9,2.4234]
[1718689414305,2.1004919,3460.9,3459.9,2.4234]
[1718689414506,5.1004919,3460.9,3459.9,2.4234]
[1718689414819,2.1004919,3460.8,3459.9,2.4234]
[1718689415006,5.1004919,3460.8,3459.9,2.4234]
[1718689415209,2.1004919,3460.7,3459.9,2.4234]
[1718689415814,2.1004919,3460.6,3459.9,2.4234]
[1718689416052,2.1004919,3460.5,3459.9,2.4234]
[1718689416248,2.1004919,3460.4,3459.9,2.4234]
[1718689416554,2.1004919,3460.3,3459.9,2.4234]
[1718689416760,3.0,3461.1,3459.9,2.66574]
[1718689417064,0.50009227,3461.2,3460.0,0.05779691]
[1718689417065,2.10035902,3461.0,3460.0,0.05779691]
[1718689417262,2.10035902,3460.9,3460.1,2.275]
[1718689417577,9.7788,3462.0,3460.1,2.275]
[1718689417578,0.5000151,3461.9,3460.3,2.2876]
[1718689417711,2.09984248,3461.8,3460.3,3.16722895]
[1718689417909,2.09984248,3461.8,3460.4,0.61852072]
[1718689418342,2.09984248,3461.8,3460.4,0.06852072]
[1718689418667,5.09984248,3461.8,3460.5,0.05778504]
[1718689418875,3.39620115,3461.7,3460.5,0.05778504]
[1718689419015,5.09984248,3461.6,3460.5,0.05778504]
[1718689419217,2.09984248,3461.5,3460.6,0.06849717]
[1718689419713,2.09984248,3461.5,3460.3,2.2876]
[1718689419917,2.09984248,3461.5,3460.4,0.06852072]
[1718689420240,0.63962011,3461.4,3460.4,0.06852072]
[1718689420435,2.09984248,3461.3,3460.4,0.06852072]
[1718689420629,2.09984248,3461.2,3460.4,0.06852072]
[1718689421031,2.09984248,3461.5,3460.4,0.06852072]
[1718689421222,3.0,3461.6,3460.4,0.06852072]
[1718689421223,2.09993318,3461.4,3460.4,0.06852072]
[1718689421417,2.09993318,3461.3,3460.4,0.05778837]
[1718689421615,2.09993318,3461.2,3460.5,0.30304778]
[1718689421855,3.49999268,3461.7,3460.5,0.30304778]
[1718689422144,2.09990511,3461.6,3460.5,0.30304778]
[1718689422353,5.09990511,3461.6,3460.5,0.30304778]